bitfinex-derivatives/quotes_BTCF0:USTF0_20210409
["timestamp","ask_amount","ask_price","bid_price","bid_amount"]
[1617946884115,1.3533666,58071.0,58070.0,3.7457873]
[1617946884321,2.3533666,58071.0,58070.0,3.7457873]
[1617946884521,2.3533666,58071.0,58070.0,0.5065873]
[1617946886617,2.85691741,58071.0,58070.0,0.5065873]
[1617946888520,2.85691741,58071.0,58070.0,0.2]
[1617946888719,2.85691741,58071.0,58069.0,0.34159522]
[1617946889222,1.35360351,58070.0,58069.0,0.035]
[1617946889823,1.35360351,58070.0,58069.0,0.34149281]
[1617946890222,1.10790304,58070.0,58069.0,0.34149281]
[1617946894427,1.35360141,58070.0,58069.0,0.34149281]
[1617946896731,4.30620141,58070.0,58069.0,0.34149281]
[1617946897632,5.17838681,58070.0,58069.0,0.34149281]
[1617946898733,2.22578681,58070.0,58069.0,0.34149281]
[1617946899434,1.61153924,58070.0,58069.0,0.34149281]
[1617946899633,1.61203924,58070.0,58069.0,0.34149281]
[1617946900336,1.35410212,58070.0,58069.0,0.34149281]
[1617946900635,1.8577981,58070.0,58069.0,0.34149281]
[1617946901636,1.35410212,58070.0,58069.0,0.34149281]
[1617946902838,1.85783945,58070.0,58069.0,0.34149281]
[1617946903837,1.35410212,58070.0,58069.0,0.34149281]
[1617946904240,1.85783564,58070.0,58069.0,0.035]
[1617946904840,1.35410212,58070.0,58069.0,0.34164082]
[1617946908241,1.85806236,58070.0,58069.0,0.34164082]
[1617946911245,1.35410212,58070.0,58069.0,0.34164082]
[1617946912049,1.85815876,58070.0,58069.0,0.34164082]
[1617946913850,4.72685876,58070.0,58069.0,0.34164082]
[1617946914450,5.09544185,58070.0,58069.0,0.40307133]
[1617946915453,2.22674185,58070.0,58069.0,0.40307133]
[1617946915954,0.0005,58070.0,58069.0,0.035]
[1617946916655,1.61477574,58070.0,58069.0,0.34191365]
[1617946917358,1.86049958,58070.0,58069.0,0.40334461]
[1617946917955,4.57519958,58070.0,58069.0,0.40334461]
[1617946918856,4.94377973,58070.0,58069.0,0.40334461]
[1617946919256,4.94377973,58070.0,58069.0,0.77163819]
[1617946920157,4.94377973,58070.0,58069.0,0.40334461]
[1617946921275,4.94377973,58070.0,58069.0,0.34191365]
[1617946922665,4.94377973,58070.0,58069.0,0.40334534]
[1617946923060,4.94377973,58070.0,58069.0,0.34191365]
[1617946927162,2.22907973,58070.0,58069.0,0.34191365]
[1617946927965,1.86049958,58070.0,58069.0,0.34191365]
[1617946929163,1.86049958,58070.0,58069.0,0.40334584]
[1617946929365,5.10749958,58070.0,58069.0,0.40334584]
[1617946930065,5.47608872,58070.0,58069.0,0.40334584]
[1617946933971,5.47608872,58070.0,58069.0,0.36834584]
[1617946934774,5.47608872,58070.0,58069.0,0.30691365]
[1617946934972,5.47608872,58070.0,58069.0,0.36834558]
[1617946935173,5.44108872,58070.0,58069.0,0.36834558]
[1617946935674,5.44108872,58070.0,58069.0,0.30691365]
[1617946936073,6.44108872,58070.0,58069.0,0.36834574]
[1617946936674,6.44108872,58070.0,58069.0,0.30691365]
[1617946937074,6.44108872,58070.0,58069.0,0.36834593]
[1617946937374,6.44108872,58070.0,58069.0,0.30691365]
[1617946937775,5.44108872,58070.0,58069.0,0.30691365]
[1617946939775,6.44108872,58070.0,58069.0,0.30691365]
[1617946940679,7.00819302,58070.0,58069.0,0.30691365]
[1617946940880,7.11544957,58070.0,58069.0,0.30691365]
[1617946941079,6.54834527,58070.0,58069.0,0.30691365]
[1617946941579,7.11544227,58070.0,58069.0,0.30691365]
[1617946941881,6.54834527,58070.0,58069.0,0.30691365]
[1617946942380,7.11549043,58070.0,58069.0,0.30691365]
[1617946952896,7.11549043,58070.0,58068.0,0.3070312]
[1617946953396,1.0,58069.0,58068.0,0.3070312]
[1617946953694,1.81053097,58069.0,58068.0,0.3070312]
[1617946953893,3.42932945,58069.0,58064.0,0.41413651]
[1617946954194,3.42932945,58069.0,58045.0,0.14335759]
[1617946954195,3.42932945,58069.0,58063.0,0.30688043]
[1617946954694,1.25008498,58064.0,58063.0,0.30688043]
[1617946954993,1.35734153,58064.0,58063.0,0.30688043]
[1617946955194,2.35734153,58064.0,58063.0,0.30688043]
[1617946955495,2.6031171,58064.0,58063.0,0.30688043]
[1617946956095,2.6031171,58064.0,58062.0,0.3068822]
[1617946956497,2.6031171,58064.0,58063.0,0.27]
[1617946956697,1.6031171,58064.0,58063.0,0.27]
[1617946956996,1.6031171,58064.0,58062.0,0.3068822]
[1617946957497,1.6031171,58064.0,58063.0,0.27]
[1617946957698,4.2143171,58064.0,58063.0,0.27]
[1617946957900,1.0,58063.0,58062.0,0.3068822]
[1617946958203,1.0,58063.0,58061.0,0.30688809]
[1617946958702,1.49523985,58062.0,58060.0,0.30689168]
[1617946959001,1.24936633,58061.0,58059.0,0.30689246]
[1617946959201,3.4416,58060.0,58059.0,0.30689246]
[1617946959602,4.6910712,58060.0,58059.0,0.30689246]
[1617946959802,5.6910712,58060.0,58059.0,0.30689246]
[1617946960102,6.30554246,58060.0,58059.0,0.30689246]
[1617946960303,6.66836581,58060.0,58059.0,0.30689246]
[1617946962206,6.66836581,58060.0,58058.0,0.30689347]
[1617946962407,1.0,58059.0,58058.0,0.30689347]
[1617946962805,3.2267546,58059.0,58058.0,0.30689347]
[1617946963005,2.2267546,58059.0,58058.0,0.30689347]
[1617946964509,1.72294181,58059.0,58056.0,0.30646951]
[1617946964809,3.6432,58057.0,58056.0,0.30646951]
[1617946965109,4.85759934,58057.0,58056.0,0.30646951]
[1617946965310,4.85759934,58057.0,58056.0,0.57646951]
[1617946965509,5.47207398,58057.0,58056.0,0.57646951]
[1617946967311,5.47207398,58057.0,58056.0,0.27]
[1617946967711,5.47207398,58057.0,58055.0,0.30647041]
[1617946968213,1.72150328,58056.0,58055.0,0.30647041]
[1617946968616,1.72150328,58056.0,58055.0,0.57647041]
[1617946972819,0.73098777,58056.0,58055.0,0.57647041]
[1617946973318,4.25442174,58056.0,58055.0,0.57647041]
[1617946973722,3.88573503,58056.0,58055.0,0.57647041]
[1617946974220,4.25442747,58056.0,58055.0,0.57647041]
[1617946975925,4.25442747,58056.0,58055.0,0.27]
[1617946976326,4.25442747,58056.0,58054.0,0.01]
[1617946976724,4.25442747,58056.0,58055.0,0.27]
[1617946976925,2.7785,58056.0,58055.0,0.27]
[1617946977124,2.7785,58056.0,58054.0,0.27]
[1617946977425,3.88512475,58056.0,58055.0,0.27]
[1617946977826,3.88512475,58056.0,58054.0,0.57632224]
[1617946978227,1.72113405,58055.0,58053.0,0.30632376]
[1617946978627,1.10663194,58054.0,58053.0,0.30632376]
[1617946979028,1.10663194,58054.0,58053.0,0.57632376]
[1617946979628,1.35243387,58054.0,58053.0,0.57632376]
[1617946980931,1.35243387,58054.0,58053.0,0.27]
[1617946981331,1.35243387,58054.0,58052.0,0.30632808]
[1617946981730,1.35243387,58054.0,58053.0,0.27]
[1617946982334,1.35243387,58054.0,58053.0,0.57632808]
[1617946982734,1.35243387,58054.0,58053.0,0.30632808]
[1617946983234,4.02573387,58054.0,58053.0,0.57632808]
[1617946984034,4.39443743,58054.0,58053.0,0.57632808]
[1617946984935,4.39443743,58054.0,58053.0,0.27]
[1617946985336,4.39443743,58054.0,58052.0,0.3063059]
[1617946985837,4.39443743,58054.0,58053.0,0.27]
[1617946986239,2.6733,58054.0,58053.0,0.27]
[1617946986639,3.77986148,58054.0,58053.0,0.27]
[1617946987738,1.10656148,58054.0,58053.0,0.27]
[1617946987939,1.10656148,58054.0,58053.0,3.0821]
[1617946988174,1.10656148,58054.0,58053.0,4.7821]
[1617946988440,1.10656148,58054.0,58053.0,5.08840454]
[1617946988839,1.10656148,58054.0,58053.0,5.45596374]
[1617946988840,0.663957,58054.0,58053.0,5.45596374]
[1617946989074,0.663957,58054.0,58053.0,5.56322029]
[1617946989341,0.30180778,58054.0,58053.0,5.56322029]
[1617946990140,0.30180778,58054.0,58053.0,7.01256252]
[1617946990942,0.30241072,58055.0,58053.0,7.01256252]
[1617946991343,0.30241072,58055.0,58053.0,6.01256252]
[1617946991543,0.30241072,58055.0,58054.0,1.0]
[1617946991744,0.30241072,58055.0,58054.0,3.97696648]
[1617946991953,0.5040281,58069.0,58054.0,4.24696648]
[1617946992143,0.5040281,58069.0,58054.0,3.24696648]
[1617946992343,0.30244111,58055.0,58054.0,3.24696648]
[1617946992744,0.30244111,58055.0,58054.0,1.97]
[1617946993052,0.30244111,58055.0,58054.0,4.14543707]
[1617946993053,0.06128293,58055.0,58054.0,4.14543707]
[1617946993303,0.26046409,58056.0,58054.0,4.14543707]
[1617946993517,0.20956409,58056.0,58054.0,7.35423707]
[1617946993710,0.24577132,58061.0,58057.0,1.0]
[1617946993711,0.36312895,58061.0,58057.0,1.0]
[1617946993869,0.29522895,58061.0,58058.0,1.7]
[1617946994047,0.49480186,58066.0,58058.0,1.97]
[1617946994048,0.051,58066.0,58058.0,1.97]
[1617946994246,0.49185139,58073.0,58058.0,1.97]
[1617946994566,0.49185139,58073.0,58065.0,0.44935898]
[1617946994769,0.29585139,58073.0,58066.0,1.80617]
[1617946995046,0.10725655,58078.0,58072.0,1.10725655]
[1617946995245,0.10725655,58078.0,58073.0,1.7]
[1617946995445,0.10725655,58078.0,58073.0,1.97]
[1617946995647,0.10725655,58078.0,58077.0,0.75424886]
[1617946995847,0.10725655,58078.0,58077.0,2.25424886]
[1617946996048,0.10725655,58078.0,58077.0,1.77]
[1617946996449,0.10725655,58078.0,58077.0,2.77]
[1617946998052,0.15935655,58078.0,58077.0,2.77]
[1617946999455,0.15935655,58078.0,58077.0,2.97]
[1617947002858,0.15935655,58078.0,58077.0,1.97]
[1617947003259,0.10725655,58078.0,58077.0,2.97]
[1617947003659,0.10725655,58078.0,58077.0,1.97]
[1617947004260,0.10725655,58078.0,58077.0,1.77]
[1617947004894,0.10725655,58078.0,58077.0,0.27]
[1617947005363,0.10725655,58078.0,58073.0,0.27]
[1617947005662,0.10725655,58078.0,58077.0,0.27]
[1617947006063,0.10725655,58078.0,58073.0,0.27]
[1617947006562,0.10725655,58078.0,58077.0,0.27]
[1617947006863,0.10725655,58078.0,58073.0,0.27]
[1617947007064,0.10725655,58078.0,58077.0,0.27]
[1617947007563,0.10725655,58078.0,58073.0,0.27]
[1617947007864,0.10725655,58078.0,58077.0,0.27]
[1617947008268,0.10725655,58078.0,58073.0,0.27]
[1617947008764,0.10725655,58078.0,58077.0,0.27]
[1617947008991,0.10725655,58078.0,58073.0,0.27]
[1617947008992,3.74515655,58078.0,58073.0,0.27]
[1617947009164,1.0,58075.0,58073.0,0.27]
[1617947009464,2.6279,58074.0,58072.0,0.10725655]
[1617947010066,2.6279,58074.0,58073.0,0.27]
[1617947019086,2.99039393,58074.0,58073.0,0.27]
[1617947021484,2.6279,58074.0,58073.0,0.27]
[1617947022384,2.99040183,58074.0,58073.0,0.27]
[1617947023985,3.29251991,58074.0,58073.0,0.27]
[1617947029086,4.29251991,58074.0,58073.0,0.27]
[1617947029788,3.29251991,58074.0,58073.0,0.27]
[1617947035400,3.73530047,58074.0,58073.0,0.27]
[1617947037703,3.73530047,58074.0,58073.0,0.57629527]
[1617947038508,3.73530047,58074.0,58073.0,0.27]
[1617947042010,4.73530047,58074.0,58073.0,0.27]
[1617947042910,3.73530047,58074.0,58073.0,0.27]
[1617947043614,1.10740047,58074.0,58073.0,0.27]
[1617947044212,1.10740047,58074.0,58073.0,2.07629334]
[1617947044413,1.10740047,58074.0,58073.0,5.23619334]
[1617947044913,1.10740047,58074.0,58073.0,5.43619334]
[1617947045115,0.66461991,58074.0,58073.0,5.80373564]
[1617947045415,0.88613004,58074.0,58073.0,5.80373564]
[1617947045614,0.88613004,58074.0,58073.0,6.80373564]
[1617947046016,0.66461991,58074.0,58073.0,6.80373564]
[1617947046317,0.30211808,58074.0,58073.0,6.80373564]
[1617947046935,0.29171808,58074.0,58073.0,7.25294067]
[1617947047217,0.36344211,58077.0,58073.0,7.25294067]
[1617947047717,0.36349698,58078.0,58076.0,0.36753196]
[1617947047917,0.36349698,58078.0,58077.0,1.7]
[1617947048217,0.36349698,58078.0,58077.0,2.33752661]
[1617947048423,0.36349698,58078.0,58077.0,3.33752661]
[1617947048716,0.36349698,58078.0,58077.0,3.44995868]
[1617947049718,0.36349698,58078.0,58077.0,3.8997659]
[1617947050018,0.36349698,58078.0,58077.0,3.8487659]
[1617947055920,0.36349698,58078.0,58077.0,2.8487659]
[1617947056625,0.36349698,58078.0,58077.0,3.8487659]
[1617947057024,0.36349698,58078.0,58077.0,3.8492659]
[1617947057926,0.36349698,58078.0,58077.0,7.2597659]
[1617947061734,0.31279698,58078.0,58077.0,7.2597659]
[1617947061933,0.53307527,58078.0,58077.0,7.2597659]
[1617947062432,0.31279698,58078.0,58077.0,7.2597659]
[1617947063034,0.31279698,58078.0,58077.0,3.8492659]
[1617947064734,0.31279698,58078.0,58077.0,3.6492659]
[1617947064936,0.31279698,58078.0,58077.0,2.6492659]
[1617947065435,0.31279698,58078.0,58077.0,2.19945868]
[1617947068637,0.31279698,58078.0,58077.0,2.64887803]
[1617947069539,0.31279698,58078.0,58077.0,3.64887803]
[1617947069940,0.31279698,58078.0,58077.0,2.64887803]
[1617947070139,0.31279698,58078.0,58077.0,6.15057803]
[1617947070840,0.31279698,58078.0,58077.0,5.70115868]
[1617947071543,0.31279698,58078.0,58077.0,6.35058547]
[1617947071744,0.31279698,58078.0,58077.0,7.35058547]
[1617947072046,0.44440342,58084.0,58077.0,7.35058547]
[1617947072345,0.44440342,58084.0,58077.0,6.35058547]
[1617947072547,0.44440342,58084.0,58083.0,1.0]
[1617947072745,0.44440342,58084.0,58083.0,2.7]
[1617947073046,0.4444706,58085.0,58083.0,3.03143167]
[1617947073446,0.74205263,58108.0,58083.0,3.03143167]
[1617947073447,0.64586994,58084.0,58083.0,3.03143167]
[1617947073849,0.64586994,58084.0,58083.0,6.68293167]
[1617947074052,0.44445838,58085.0,58083.0,6.68293167]
[1617947074653,0.44445838,58085.0,58084.0,0.06143262]
[1617947075048,0.44445838,58085.0,58084.0,0.33143262]
[1617947075348,0.44445838,58085.0,58084.0,2.03143262]
[1617947075650,0.44445838,58085.0,58084.0,2.13868917]
[1617947076049,0.44445838,58085.0,58084.0,1.93868917]
[1617947077048,0.7474654,58085.0,58084.0,2.2450499]
[1617947077249,0.7474654,58085.0,58084.0,5.4787499]
[1617947079953,0.7474654,58085.0,58084.0,5.6787499]
[1617947080152,0.30300702,58085.0,58084.0,5.6787499]
[1617947080352,0.30300702,58085.0,58084.0,6.6787499]
[1617947080754,0.30300702,58085.0,58084.0,7.12791917]
[1617947081252,0.30332892,58086.0,58084.0,7.12791917]
[1617947081652,0.09032892,58086.0,58085.0,0.9089195]
[1617947081851,0.09032892,58086.0,58085.0,2.6089195]
[1617947082053,0.44513395,58098.0,58085.0,4.38929688]
[1617947082456,0.44513395,58098.0,58086.0,0.15354196]
[1617947082654,0.19327616,58107.0,58086.0,0.15354196]
[1617947082655,0.4452268,58099.0,58093.0,0.56320856]
[1617947082855,0.4452268,58099.0,58094.0,2.7]
[1617947083056,0.15887484,58097.0,58094.0,2.71]
[1617947083255,0.15887484,58097.0,58094.0,1.71]
[1617947083458,0.15840936,58098.0,58096.0,3.39265655]
[1617947083756,0.44532809,58102.0,58097.0,1.5614161]
[1617947083956,0.44532809,58102.0,58097.0,2.8314161]
[1617947084359,0.44555043,58104.0,58103.0,1.0]
[1617947084559,0.15842923,58107.0,58104.0,1.05444957]
[1617947084760,0.0883276,58104.0,58103.0,0.07141474]
[1617947085259,0.035,58108.0,58103.0,0.06141474]
[1617947085260,0.08829379,58107.0,58103.0,0.06141474]
[1617947085459,0.08829379,58107.0,58106.0,0.10725655]
[1617947085861,0.08829379,58107.0,58106.0,0.37725655]
[1617947086959,0.45169906,58107.0,58106.0,0.37725655]
[1617947087864,0.45169906,58107.0,58106.0,3.93735655]
[1617947088464,0.95613395,58107.0,58106.0,3.93735655]
[1617947088965,0.45169906,58107.0,58106.0,3.93735655]
[1617947089764,0.95614462,58107.0,58106.0,3.93735655]
[1617947090566,0.45169906,58107.0,58106.0,3.93735655]
[1617947097174,0.45169906,58107.0,58106.0,4.04559655]
[1617947098083,0.45169906,58107.0,58106.0,3.93735655]
[1617947098678,0.45169906,58107.0,58106.0,3.93785655]
[1617947100390,0.035,58108.0,58106.0,3.93785655]
[1617947100582,0.035,58108.0,58106.0,0.37775655]
[1617947101080,0.36348403,58107.0,58106.0,3.33705655]
[1617947102288,0.45654917,58107.0,58106.0,0.37775655]
[1617947102780,4.02504917,58107.0,58106.0,0.37775655]
[1617947103411,4.02504917,58107.0,58106.0,0.2705]
[1617947103630,4.24415572,58107.0,58106.0,0.2705]
[1617947103781,5.24415572,58107.0,58106.0,0.2705]
[1617947104581,5.74750797,58107.0,58106.0,0.2705]
[1617947104982,6.19033405,58107.0,58106.0,0.2705]
[1617947121302,5.19033405,58107.0,58106.0,0.2705]
[1617947121704,6.19033405,58107.0,58106.0,0.2705]
[1617947122502,6.59913747,58107.0,58106.0,0.2705]
[1617947123604,6.19033405,58107.0,58106.0,0.2705]
[1617947125810,5.6869818,58107.0,58106.0,0.2705]
[1617947126511,5.5751318,58107.0,58106.0,0.2705]
[1617947126711,4.5751318,58107.0,58106.0,0.2705]
[1617947127713,4.5751318,58107.0,58106.0,0.37775655]
[1617947128512,4.5751318,58107.0,58106.0,4.08755655]
[1617947129117,5.07775928,58107.0,58106.0,4.08755655]
[1617947129514,5.07775928,58107.0,58106.0,0.37775655]
[1617947129716,6.07775928,58107.0,58106.0,0.37775655]
[1617947132518,6.48236567,58107.0,58106.0,0.37775655]
[1617947138524,7.98236567,58107.0,58106.0,0.2705]
[1617947138724,6.98236567,58107.0,58106.0,0.2705]
[1617947138925,7.98236567,58107.0,58106.0,0.2705]
[1617947139329,8.54631331,58107.0,58106.0,0.2705]
[1617947144232,8.54631331,58107.0,58106.0,0.26947629]
[1617947145935,7.54631331,58107.0,58106.0,0.26947629]
[1617947146134,8.54631331,58107.0,58106.0,0.26947629]
[1617947147235,7.04631331,58107.0,58106.0,0.26947629]
[1617947149140,8.54631331,58107.0,58106.0,0.26947629]
[1617947150943,8.59831331,58107.0,58106.0,0.26947629]
[1617947151945,7.59831331,58107.0,58106.0,0.26947629]
[1617947152147,8.59831331,58107.0,58106.0,0.26947629]
[1617947155448,7.09831331,58107.0,58106.0,0.26947629]
[1617947155648,7.09831331,58107.0,58106.0,0.26845255]
[1617947156649,7.04631331,58107.0,58106.0,0.26845255]
[1617947157851,7.09831331,58107.0,58106.0,0.26845255]
[1617947158351,7.04631331,58107.0,58106.0,0.26845255]
[1617947160951,8.54631331,58107.0,58106.0,0.26845255]
[1617947166261,8.54631331,58107.0,58106.0,0.26742879]
[1617947171171,7.04631331,58107.0,58106.0,0.26742879]
[1617947177683,7.04631331,58107.0,58106.0,0.26640505]
[1617947182690,6.04631331,58107.0,58106.0,0.26640505]
[1617947183087,2.47781331,58107.0,58106.0,0.26640505]
[1617947183288,2.47781331,58107.0,58106.0,3.15452505]
[1617947183289,1.91386567,58107.0,58106.0,3.15452505]
[1617947183789,1.41619414,58107.0,58106.0,3.15452505]
[1617947184289,1.41619414,58107.0,58106.0,3.2617816]
[1617947184290,1.508168,58107.0,58106.0,3.2617816]
[1617947189692,1.508168,58107.0,58106.0,0.4860816]
[1617947190190,1.508168,58107.0,58106.0,0.3736616]
[1617947190191,4.626868,58107.0,58106.0,0.3736616]
[1617947190893,4.88101583,58107.0,58106.0,0.3736616]
[1617947191592,1.76231583,58107.0,58106.0,0.3736616]
[1617947191793,1.76231583,58107.0,58106.0,2.9463616]
[1617947192096,1.508168,58107.0,58106.0,2.9463616]
[1617947192596,1.00554052,58107.0,58106.0,2.9463616]
[1617947193097,1.51153001,58107.0,58106.0,2.9463616]
[1617947193396,1.00554052,58107.0,58106.0,2.9463616]
[1617947193796,1.51156483,58107.0,58106.0,2.9463616]
[1617947196201,1.00554052,58107.0,58106.0,2.9463616]
[1617947200403,1.00554052,58107.0,58106.0,0.3736616]
[1617947200606,4.55044052,58107.0,58106.0,0.3736616]
[1617947201206,4.10761444,58107.0,58106.0,0.67958178]
[1617947201404,4.10761444,58107.0,58106.0,4.38448178]
[1617947202206,4.00035789,58107.0,58106.0,4.38448178]
[1617947203707,0.45545789,58107.0,58106.0,0.67958178]
[1617947205708,3.44755789,58107.0,58106.0,3.30518178]
[1617947207709,3.44755789,58107.0,58106.0,2.9992616]
[1617947216226,0.45545789,58107.0,58106.0,2.9992616]
[1617947216433,0.45545789,58107.0,58106.0,3.1139116]
[1617947216676,0.36348403,58107.0,58106.0,3.3139116]
[1617947216841,0.035,58108.0,58106.0,3.3139116]
[1617947216842,0.39992158,58108.0,58106.0,3.98641614]
[1617947217052,0.035,58108.0,58106.0,3.98641614]
[1617947217525,0.035,58108.0,58107.0,0.73387697]
[1617947217722,0.035,58108.0,58107.0,0.93387697]
[1617947217926,0.035,58108.0,58107.0,1.20387697]
[1617947219425,0.035,58108.0,58107.0,0.775669]
[1617947220026,0.035,58108.0,58107.0,0.575669]
[1617947221630,0.035,58108.0,58107.0,0.627969]
[1617947222428,0.035,58108.0,58107.0,0.575669]
[1617947223630,0.035,58108.0,58107.0,0.94230527]
[1617947226332,0.035,58108.0,58107.0,0.575669]
[1617947227642,3.597,58108.0,58107.0,0.575669]
[1617947229133,3.562,58108.0,58107.0,0.575669]
[1617947229437,3.96160703,58108.0,58107.0,0.575669]
[1617947229843,3.96160703,58108.0,58107.0,0.27]
[1617947230736,3.96160703,58108.0,58107.0,0.2705]
[1617947232439,4.06886358,58108.0,58107.0,0.2705]
[1617947233438,4.06886358,58108.0,58107.0,0.57612783]
[1617947234041,4.06886358,58108.0,58107.0,0.94351663]
[1617947235041,4.06886358,58108.0,58107.0,1.00492364]
[1617947237945,4.06886358,58108.0,58107.0,1.20492364]
[1617947239745,4.06886358,58108.0,58107.0,1.00492364]
[1617947245357,4.06886358,58108.0,58107.0,1.4542273]
[1617947245556,0.50686358,58108.0,58107.0,1.4542273]
[1617947245858,0.50686358,58108.0,58107.0,4.45481663]
[1617947246260,0.50686358,58108.0,58107.0,4.51621931]
[1617947246458,0.39960703,58108.0,58107.0,4.51621931]
[1617947246959,0.39960703,58108.0,58107.0,4.71621931]
[1617947247161,0.39960703,58108.0,58107.0,5.16542548]
[1617947247560,0.48812183,58108.0,58107.0,5.16542548]
[1617947254174,0.48812183,58108.0,58107.0,4.96542548]
[1617947255578,0.48812183,58108.0,58107.0,1.45412548]
[1617947256982,3.17432183,58108.0,58107.0,1.45412548]
[1617947260286,3.62191012,58108.0,58107.0,1.45412548]
[1617947261187,3.17432183,58108.0,58107.0,1.45412548]
[1617947261589,3.62191347,58108.0,58107.0,1.45412548]
[1617947266692,0.93571347,58108.0,58107.0,1.45412548]
[1617947267397,1.93571347,58108.0,58107.0,1.45412548]
[1617947267599,0.93571347,58108.0,58107.0,1.00491931]
[1617947267895,1.93571347,58108.0,58107.0,1.00491931]
[1617947268498,2.44426748,58108.0,58107.0,1.00491931]
[1617947268797,5.43076748,58108.0,58107.0,0.57612783]
[1617947269498,5.69511669,58108.0,58107.0,0.2705]
[1617947270397,6.10226695,58108.0,58107.0,0.2705]
[1617947271998,5.69511669,58108.0,58107.0,0.2705]
[1617947274200,5.69511669,58108.0,58107.0,0.57724697]
[1617947277305,5.66011669,58108.0,58107.0,0.57724697]
[1617947277607,5.66011669,58108.0,58107.0,0.2705]
[1617947277809,5.69511669,58108.0,58107.0,0.2705]
[1617947278206,1.70861669,58108.0,58107.0,0.2705]
[1617947278405,1.70861669,58108.0,58107.0,3.5816]
[1617947278707,1.70861669,58108.0,58107.0,3.68885655]
[1617947278708,1.44426748,58108.0,58107.0,3.68885655]
[1617947279108,0.93571347,58108.0,58107.0,3.9951144]
[1617947280010,0.93571347,58108.0,58107.0,4.36261473]
[1617947283012,0.48812183,58108.0,58107.0,4.36261473]
[1617947284313,0.48812183,58108.0,58107.0,1.05151473]
[1617947284525,3.69102183,58108.0,58107.0,1.05151473]
[1617947286832,0.48812183,58108.0,58107.0,1.05151473]
[1617947287029,0.48812183,58108.0,58107.0,3.61851473]
[1617947287226,0.93455533,58108.0,58107.0,3.2510144]
[1617947287539,0.93455533,58108.0,58107.0,0.6840144]
[1617947287730,1.84604053,58108.0,58107.0,0.6840144]
[1617947287929,5.35984053,58108.0,58107.0,0.6840144]
[1617947288215,5.55975847,58108.0,58107.0,0.37775655]
[1617947288519,6.32044333,58108.0,58107.0,0.37775655]
[1617947292519,6.32044333,58108.0,58107.0,0.2705]
[1617947300626,7.82044333,58108.0,58107.0,0.2705]
[1617947302834,6.32044333,58108.0,58107.0,0.2705]
[1617947310338,2.80664333,58108.0,58107.0,0.2705]
[1617947310539,4.30664333,58108.0,58107.0,0.2705]
[1617947316846,4.30664333,58108.0,58107.0,0.0005]
[1617947320949,4.87213025,58108.0,58107.0,0.0005]
[1617947321162,10.07213025,58108.0,58107.0,0.0005]
[1617947321452,3.4673,58088.0,58087.0,0.30607459]
[1617947321651,3.58231,58088.0,58086.0,0.30607489]
[1617947322051,5.08231,58088.0,58086.0,0.30607489]
[1617947322256,2.2258236,58087.0,58086.0,0.30607489]
[1617947322551,2.2258236,58087.0,58085.0,0.30608436]
[1617947322755,2.2258236,58087.0,58086.0,0.27]
[1617947323052,1.39014572,58087.0,58086.0,0.30608273]
[1617947323251,0.39014572,58087.0,58086.0,0.30608273]
[1617947323452,1.19706645,58087.0,58086.0,0.56608273]
[1617947323653,2.19706645,58087.0,58086.0,0.56608273]
[1617947323852,3.69706645,58087.0,58086.0,0.26]
[1617947324352,3.69706645,58087.0,58084.0,0.30608358]
[1617947324653,3.69706645,58087.0,58086.0,0.27]
[1617947324855,2.69706645,58087.0,58086.0,0.27]
[1617947325052,2.69706645,58087.0,58085.0,0.01]
[1617947325254,2.69706645,58087.0,58083.0,0.30610648]
[1617947325454,2.69706645,58087.0,58086.0,0.27]
[1617947325655,1.89014572,58087.0,58086.0,0.27]
[1617947325855,1.89014572,58087.0,58085.0,0.27]
[1617947326155,1.89014572,58087.0,58083.0,0.30610648]
[1617947326156,1.19657402,58087.0,58084.0,0.27]
[1617947326357,1.99913964,58086.0,58084.0,0.27]
[1617947326557,2.44338893,58086.0,58084.0,0.36803626]
[1617947326957,3.78695208,58085.0,58084.0,0.63803626]
[1617947327157,3.78695208,58085.0,58084.0,0.36803626]
[1617947327361,3.78695208,58085.0,58083.0,0.30597502]
[1617947327557,3.78695208,58085.0,58084.0,0.27]
[1617947327759,3.2933353,58085.0,58084.0,0.27]
[1617947327959,4.2933353,58085.0,58083.0,0.30597502]
[1617947328360,4.65591623,58085.0,58084.0,0.27]
[1617947328762,3.8491,58085.0,58082.0,0.30597474]
[1617947329161,0.36258503,58083.0,58082.0,0.30597474]
[1617947329561,0.36258503,58083.0,58082.0,0.57597474]
[1617947330263,4.38898503,58083.0,58082.0,0.57597474]
[1617947331465,4.38898503,58083.0,58082.0,0.27]
[1617947331867,4.38898503,58083.0,58081.0,0.30597872]
[1617947332068,4.83214463,58083.0,58080.0,0.30598113]
[1617947332268,6.33214463,58083.0,58082.0,0.27]
[1617947332472,4.5264,58083.0,58082.0,0.27]
[1617947332670,5.7264,58083.0,58079.0,0.3159844]
[1617947332887,7.03416046,58083.0,58073.0,0.3060228]
[1617947333068,0.23250655,58074.0,58073.0,0.3060228]
[1617947333269,2.53702901,58074.0,58072.0,0.30602375]
[1617947333769,0.47807764,58073.0,58072.0,0.30602375]
[1617947333969,1.97807764,58073.0,58072.0,0.30602375]
[1617947334173,2.42045707,58073.0,58071.0,0.30603151]
[1617947334572,0.47803406,58072.0,58071.0,0.30603151]
[1617947334872,2.97803406,58072.0,58070.0,0.3060287]
[1617947335372,2.97803406,58072.0,58068.0,0.30603969]
[1617947335373,0.91991062,58071.0,58068.0,0.30603969]
[1617947335571,2.41991062,58071.0,58068.0,0.30603969]
[1617947335772,0.36175078,58069.0,58068.0,0.57603969]
[1617947335972,1.36175078,58069.0,58068.0,0.57603969]
[1617947336272,4.44935909,58069.0,58066.0,0.30604394]
[1617947336672,4.44935909,58069.0,58068.0,0.30604649]
[1617947336673,4.1234227,58069.0,58068.0,0.30604649]
[1617947336872,0.4777227,58069.0,58068.0,0.30604649]
[1617947337074,1.0,58069.0,58067.0,0.30604717]
[1617947337575,0.36160546,58068.0,58067.0,0.57604717]
[1617947337974,1.0,58069.0,58067.0,0.30604717]
[1617947338375,3.3228,58068.0,58067.0,0.27]
[1617947338674,4.3228,58068.0,58067.0,0.27]
[1617947338875,3.3228,58068.0,58063.0,0.27]
[1617947339075,0.10725655,58064.0,58063.0,0.27]
[1617947339277,3.43055655,58064.0,58063.0,0.27]
[1617947339877,4.43055655,58064.0,58063.0,0.27]
[1617947341379,4.43055655,58064.0,58062.0,0.27]
[1617947341778,4.43055655,58064.0,58063.0,0.26]
[1617947342180,4.43055655,58064.0,58060.0,0.26]
[1617947342480,4.43055655,58064.0,58063.0,0.27]
[1617947342886,4.43055655,58064.0,58060.0,0.57502432]
[1617947343083,4.43055655,58064.0,58060.0,0.27]